fUST/lending_fUST_20260409
["ID","MTS","AMOUNT","RATE_DAILY","PERIOD"]
[420123052,1775697039080,-2350.7743398,0.000125,2]
[420123054,1775697039091,-5000.0,0.00012896,2]
[420123055,1775697039101,-1000.0,0.00013699,2]
[420123057,1775697039111,-420.0,0.00013714,2]
[420123059,1775697039121,-1199.41634795,0.000169,2]
[420123061,1775697039133,-112644.01310081,0.00017,2]
[420123062,1775697039144,-5017.31647682,0.00018,2]
[420123063,1775697039155,-161.22,0.00018116,2]
[420123064,1775697039165,-384.82665364,0.00019314,2]
[420123065,1775697039175,-500.0,0.00019314,2]
[420123066,1775697039185,-500.0,0.00019314,2]
[420123067,1775697039194,-607.92728418,0.00019314,2]
[420123068,1775697039204,-500.0,0.00019314,2]
[420123069,1775697039214,-500.0,0.00019314,2]
[420123070,1775697039224,-500.0,0.00019314,2]
[420123071,1775697039234,-500.0,0.00019314,2]
[420123072,1775697039243,-200.0,0.00019314,2]
[420123073,1775697039254,-500.0,0.00019314,2]
[420123074,1775697039263,-500.0,0.00019314,2]
[420123075,1775697039272,-500.0,0.00019314,2]
[420123076,1775697039282,-5050.263279,0.00019315,2]
[420123077,1775697039291,-9281.99298765,0.0002,2]
[420123078,1775697039300,-196.4,0.00020286,2]
[420123079,1775697039309,-6393.5187079,0.00020286,2]
[420123080,1775697039318,-751.071,0.00020527,2]
[420123081,1775697039326,-184.0,0.00020527,2]
[420123082,1775697039335,-440.0,0.00020527,2]
[420123084,1775697039345,-196.4,0.00020755,2]
[420123086,1775697039354,-672.31704703,0.00020906,2]
[420123087,1775697039361,-13094.43583662,0.0002098,2]
[420123089,1775697039371,-500.0,0.00020998,2]
[420123091,1775697039380,-500.0,0.00020998,2]
[420123093,1775697039390,-500.0,0.00020998,2]
[420123095,1775697039399,-500.0,0.00020998,2]
[420123097,1775697039410,-500.0,0.00020998,2]
[420123099,1775697039419,-500.0,0.00020998,2]
[420123101,1775697039428,-500.0,0.00020998,2]
[420123103,1775697039438,-500.0,0.00020998,2]
[420123105,1775697039447,-500.0,0.00020998,2]
[420123107,1775697039458,-500.0,0.00020998,2]
[420123109,1775697039467,-500.0,0.00020998,2]
[420123111,1775697039476,-500.0,0.00020998,2]
[420123112,1775697039485,-500.0,0.00020998,2]
[420123114,1775697039494,-500.0,0.00020998,2]
[420123116,1775697039503,-500.0,0.00020998,2]
[420123118,1775697039513,-500.0,0.00020998,2]
[420123120,1775697039522,-500.0,0.00020998,2]
[420123122,1775697039531,-500.0,0.00020998,2]
[420123124,1775697039541,-3000.0,0.00021,2]
[420123126,1775697039550,-159.0,0.00021,2]
[420123128,1775697039559,-160.0,0.00021,3]
[420123130,1775697039568,-3000.0,0.0002101,2]
[420123132,1775697039578,-497997.41032577,0.0002101,2]
[420123134,1775697039590,-352.5,0.0002101,2]
[420123262,1775697041963,-4069.70325648,0.0002101,2]
[420123263,1775697041975,-679.74568273,0.0002101,2]
[420123265,1775697041986,-877.37578641,0.0002101,2]
[420123646,1775697049617,-4698.0,0.000208,2]
[420123648,1775697049637,-88358.43068985,0.0002101,2]
[420123650,1775697049652,-2969.19821707,0.0002101,2]
[420123652,1775697049665,-1050.59287838,0.0002101,2]
[420123655,1775697049678,-31338.5725592,0.0002101,2]
[420123657,1775697049692,-28366.10645598,0.0002101,2]
[420123659,1775697049704,-883.78789779,0.0002101,2]
[420123661,1775697049716,-1041.66666667,0.0002101,2]
[420123663,1775697049729,-1801.41093038,0.0002101,2]
[420123665,1775697049890,-4740.16662601,0.0002101,2]
[420123667,1775697049905,-2282.07270867,0.0002101,2]
[420123670,1775697050198,-5096.94,0.00021,10]
[420123673,1775697050209,-21763.47606581,0.0002101,2]
[420123677,1775697050221,-1257.87188007,0.0002101,2]
[420123681,1775697050234,-346.82645594,0.0002101,2]
[420123683,1775697050246,-17128.1951221,0.0002101,2]
[420123686,1775697579192,10000.0,9.001e-05,2]
[420123690,1775698233185,-500.337,0.00013025,2]
[420123693,1775698233196,-4499.663,0.00013025,2]
[420123695,1775698233207,-607.0,0.00013157,2]
[420123696,1775698233216,-223.44386293,0.00013699,2]
[420123781,1775698238526,-520.85938128,0.00013699,2]
[420123783,1775698238538,-255.69675579,0.00013699,2]
[420123785,1775698238547,-5025.92727762,0.00017794,2]
[420123787,1775698238556,-626.650415,0.00018945,2]
[420123789,1775698238565,-15380.3736,0.00019875,2]
[420123791,1775698238574,-250.0,0.00019904,2]
[420123793,1775698238584,-335.93915555,0.00019999,2]
[420123795,1775698238593,-501.36261718,0.00019999,2]
[420123797,1775698238603,-500.0,0.00019999,2]
[420123799,1775698238612,-500.0,0.00019999,2]
[420123801,1775698238621,-500.0,0.00019999,2]
[420123802,1775698238630,-200.21887466,0.00019999,2]
[420123803,1775698238639,-522.74051576,0.00019999,2]
[420123804,1775698238649,-63928.88222281,0.0002,15]
[420123814,1775698241259,-4074.60966843,0.0002,15]
[420123817,1775698241270,-1881.86348617,0.0002,15]
[420123819,1775698241281,-2329.1941798,0.0002,15]
[420124096,1775698243743,-729.67770619,0.0002,15]
[420124098,1775698243755,-639.07376946,0.0002,15]
[420124100,1775698243767,-7953.51744111,0.0002,15]
[420124339,1775698246383,-1647.88765802,0.000199,2]
[420124342,1775698246395,-366.0,0.000199,2]
[420124344,1775698246406,-14125.27939283,0.000199,2]
[420124346,1775698246416,-6543.32204423,0.000199,2]
[420124348,1775698246428,-440.87684538,0.000199,2]
[420124709,1775698320987,3162.99,0.00031507,120]
[420124710,1775698324011,1000.0,0.00013699,2]
[420124712,1775698435193,556.19,0.000315,120]
[420124713,1775698462786,713.94,0.00031507,120]
[420124714,1775698493717,4283.0,0.00031507,120]
[420124718,1775698809600,555.0,0.00031506,120]
[420124719,1775698826015,444.0,0.00031506,120]
[420124720,1775698839191,333.0,0.00031506,120]
[420124721,1775698843191,2519.0,0.00031506,120]
[420124722,1775698852257,222.0,0.00031506,120]
[420124723,1775698864252,155.0,0.00031506,120]
[420124724,1775698865935,381.15,0.000315,120]
[420124725,1775698880370,555.0,0.00031506,120]
[420124726,1775698893735,444.0,0.00031506,120]
[420124727,1775698918073,155.0,0.00031506,120]
[420124729,1775699169471,331284.34105719,0.00031506,120]
[420124730,1775699311691,1000.0,0.0001,10]
[420124751,1775699432007,-485.96229807,0.00013156,2]
[420124752,1775699432020,-3795.75818699,0.00013156,2]
[420124753,1775699432030,-1200.0,0.00013288,2]
[420124754,1775699432040,-5000.0,0.00013289,2]
[420124755,1775699432051,-300.0,0.00013421,2]
[420124756,1775699432060,-300.0,0.00013422,2]
[420124757,1775699432070,-300.0,0.00013422,2]
[420124758,1775699432079,-300.0,0.00013422,2]
[420124759,1775699432089,-5000.0,0.00013423,2]
[420124760,1775699432098,-1000.0,0.00013699,2]
[420124761,1775699432108,-1680.0,0.00014617,2]
[420124762,1775699432118,-420.0,0.00014713,2]
[420124763,1775699432128,-420.0,0.00014713,2]
[420124764,1775699432138,-420.0,0.00014713,2]
[420124765,1775699432147,-2351.0,0.00016078,2]
[420124766,1775699432158,-181.0,0.00016129,2]
[420124767,1775699432168,-587.0,0.00016129,2]
[420124768,1775699432178,-587.0,0.00016129,2]
[420124769,1775699432190,-300.0,0.00016438,2]
[420124770,1775699432199,-250.48220717,0.00017563,2]
[420124771,1775699432209,-223.0,0.0001768,2]
[420124772,1775699432220,-330.0,0.00017964,2]
[420124773,1775699432230,-167.313708,0.00018527,2]
[420124774,1775699432242,-4323.26786588,0.00018539,2]
[420124775,1775699432253,-909.68827657,0.00018539,2]
[420124776,1775699432265,-90.31172343,0.00018539,2]
[420124777,1775699432275,-180.916855,0.00018711,2]
[420124778,1775699432285,-288.02,0.000194,2]
[420124779,1775699432294,-363.0,0.00019632,2]
[420124780,1775699432305,-180.916855,0.00019696,2]
[420124781,1775699432551,-555.0,0.000198,2]
[420124782,1775699432584,-444.0,0.000198,2]
[420124783,1775699432594,-333.0,0.000198,2]
[420124784,1775699432604,-26.91632887,0.000198,2]
[420124785,1775699432619,-195.08367113,0.000198,2]
[420124786,1775699432629,-174.74154875,0.000198,2]
[420124811,1775699438363,-779.92386347,0.00014471,2]
[420124812,1775699438471,-3557.04233503,0.00014471,2]
[420124814,1775699438481,-630.0,0.00014617,2]
[420124815,1775699438491,-380.25845125,0.000198,2]
[420124816,1775699438501,-1006.9,0.000198,3]
[420124817,1775699438510,-155.0,0.00019894,2]
[420124818,1775699438520,-244.40011889,0.00019899,2]
[420124819,1775699438530,-18133.84726267,0.000199,2]
[420124820,1775699438541,-2395.53715269,0.000199,2]
[420125512,1775699449982,-37874.07403667,0.000199,2]
[420125531,1775699450657,-16849.119608,0.000199,2]
[420125532,1775699450669,-572.36117659,0.000199,2]
[420125549,1775700043235,-1600.0,9.9e-05,2]
[420125550,1775700632323,-875.58397503,9.506e-05,2]
[420125591,1775700638558,-234.76603299,9.506e-05,2]
[420125592,1775700638567,-5000.0,9.606e-05,2]
[420125593,1775700638577,-555.0,9.606e-05,2]
[420125594,1775700638587,-1200.0,9.999e-05,2]
[420125595,1775700638596,-357.80487207,0.0001,2]
[420125596,1775700638606,-254.61262267,0.0001,2]
[420125597,1775700638615,-220.17773882,0.0001,2]
[420125598,1775700638624,-152.47288453,0.0001,2]
[420125599,1775700638634,-357.80487207,0.00010501,2]
[420125600,1775700638643,-300.0,0.00010998,2]
[420125601,1775700638653,-50000.0,0.00010999,2]
[420125602,1775700638663,-1680.0,0.00010999,2]
[420125603,1775700638672,-357.80487207,0.00011003,2]
[420125604,1775700638682,-220.17773882,0.00011038,2]
[420125605,1775700638692,-357.80487207,0.00011504,7]
[420125606,1775700638701,-575.45744188,0.00011997,2]
[420125607,1775700638710,-357.80487207,0.00012005,7]
[420125608,1775700638720,-254.61262267,0.00012077,7]
[420125609,1775700638729,-152.47288453,0.00012077,7]
[420125610,1775700638738,-220.17773882,0.00012077,7]
[420125611,1775700638747,-420.0,0.00012086,2]
[420125612,1775700638756,-2351.0,0.00012099,2]
[420125613,1775700638766,-357.80487207,0.00012506,7]
[420125614,1775700638776,-500.0,0.00012614,2]
[420125615,1775700638784,-523.50818892,0.00012614,2]
[420125616,1775700638794,-500.0,0.00012614,2]
[420125617,1775700638804,-502.97540728,0.00012614,2]
[420125618,1775700638813,-503.81631657,0.00012614,2]
[420125619,1775700638823,-500.50645878,0.00012614,2]
[420125620,1775700638832,-500.62097952,0.00012614,2]
[420125621,1775700638841,-501.66424935,0.00012614,2]
[420125622,1775700638851,-501.15321717,0.00012614,2]
[420125623,1775700638860,-502.94563322,0.000127,2]
[420125624,1775700638869,-501.39645091,0.000127,2]
[420125625,1775700638879,-501.19470444,0.000127,2]
[420125626,1775700638888,-251.02696438,0.00012821,2]
[420125627,1775700638898,-3516.44207579,0.000129,2]
[420125628,1775700638907,-357.80487207,0.00013008,7]
[420125629,1775700638916,-220.17773882,0.00013115,7]
[420125630,1775700638925,-1000.0,0.00013162,2]
[420125631,1775700638935,-527.15295588,0.00013162,2]
[420125632,1775700638944,-3516.44207579,0.00013249,2]
[420125633,1775700638954,-587.0,0.00013281,2]
[420125634,1775700638963,-357.80487207,0.00013509,7]
[420125635,1775700638972,-1000.0,0.00013699,2]
[420125636,1775700638982,-1500.0,0.0001371,2]
[420125637,1775700638991,-575.45744185,0.00013923,2]
[420125638,1775700639000,-357.80487207,0.0001401,7]
[420125639,1775700639010,-254.61262267,0.00014153,7]
[420125640,1775700639020,-152.47288453,0.00014153,7]
[420125641,1775700639029,-220.17773882,0.00014153,7]
[420125651,1775700639286,-2000.0,0.00014258,2]
[420125652,1775700639305,-357.80487207,0.00014511,14]
[420125653,1775700639314,-160.45397483,0.0001459,2]
[420125654,1775700639324,-2500.0,0.00014806,2]
[420125655,1775700639335,-357.80487207,0.00015013,14]
[420125656,1775700639344,-220.17773882,0.00015192,14]
[420125657,1775700639353,-3000.0,0.00015354,2]
[420125658,1775700639363,-357.80487207,0.00015514,14]
[420125659,1775700639372,-3516.44207579,0.000156,2]
[420125660,1775700639382,-575.45744185,0.00015849,2]
[420125661,1775700639392,-3500.0,0.00015902,2]
[420125662,1775700639402,-357.80487207,0.00016015,14]
[420125663,1775700639411,-151.253,0.00016137,2]
[420125664,1775700639421,-254.61262267,0.0001623,14]
[420125665,1775700639431,-152.47288453,0.0001623,14]
[420125666,1775700639440,-220.17773882,0.0001623,14]
[420125667,1775700639450,-300.0,0.00016438,2]
[420125668,1775700639460,-4000.0,0.0001645,2]
[420125669,1775700639469,-357.80487207,0.00016516,14]
[420125670,1775700639478,-4500.0,0.00016998,2]
[420125671,1775700639488,-357.80487207,0.00017018,14]
[420125672,1775700639497,-220.17773882,0.00017268,14]
[420125673,1775700639507,-357.80487207,0.00017519,30]
[420125674,1775700639518,-5000.0,0.00017546,2]
[420125675,1775700639528,-575.45744185,0.00017774,2]
[420125676,1775700639537,-3516.44207579,0.0001795,2]
[420125677,1775700639546,-330.0,0.00017964,2]
[420125678,1775700639555,-357.80487207,0.0001802,30]
[420125679,1775700639565,-5066.36765139,0.00018094,2]
[420125680,1775700639574,-254.61262267,0.00018307,30]
[420125681,1775700639583,-152.47288453,0.00018307,30]
[420125682,1775700639592,-220.17773882,0.00018307,30]
[420125683,1775700639602,-3084.6895642,0.00018357,2]
[420125684,1775700639611,-1514.0545824,0.00018357,2]
[420125685,1775700639621,-1236.4498799,0.00018357,2]
[420125686,1775700639630,-3108.4281944,0.0001841,2]
[420125687,1775700639640,-3025.7242499,0.0001841,2]
[420125688,1775700639650,-357.80487207,0.00018521,30]
[420125689,1775700639659,-3387.19896656,0.00019,15]
[420125690,1775700639669,-21440.26082705,0.00019,2]
[420125691,1775700639678,-357.80487207,0.00019023,30]
[420125693,1775700639688,-200.0,0.00019178,2]
[420125695,1775700639697,-150.19454698,0.00019178,2]
[420125697,1775700639708,-1468.008728,0.00019178,2]
[420125699,1775700639717,-1468.008728,0.00019178,2]
[420125700,1775700639727,-1468.008728,0.00019178,2]
[420125701,1775700639737,-332.55269493,0.00019178,2]
[420125702,1775700639752,-722.33803191,0.00019178,2]
[420125703,1775700639763,-413.11800116,0.00019178,2]
[420125704,1775700639773,-220.17773882,0.00019345,30]
[420125705,1775700639782,-156.00027844,0.00019458,2]
[420126014,1775700643582,-27.99972156,0.00019458,2]
[420126015,1775700643593,-439.841,0.00019458,2]
[420126016,1775700643603,-357.80487207,0.00019524,30]
[420126017,1775700643614,-1468.008728,0.00019532,2]
[420126018,1775700643625,-1468.008728,0.00019532,2]
[420126019,1775700643635,-1468.008728,0.00019532,2]
[420126020,1775700643645,-1468.008728,0.00019532,2]
[420126021,1775700643655,-2584.196473,0.00019532,2]
[420126022,1775700643665,-2584.196473,0.00019532,2]
[420126023,1775700643675,-2584.196473,0.00019532,2]
[420126024,1775700643685,-2584.196473,0.00019532,2]
[420126025,1775700643695,-19639.45220404,0.00019532,2]
[420126339,1775700646739,-5000.0,0.00019263,2]
[420126341,1775700646749,-24711.51771756,0.00019532,2]
[420126343,1775700646760,-6487.0470239,0.00019532,2]
[420126345,1775700646772,-17824.35853165,0.00019532,2]
[420126347,1775700646782,-363.0,0.00019632,2]
[420126349,1775700646791,-849.65,0.00019688,3]
[420126351,1775700646801,-424.82,0.00019688,3]
[420126353,1775700646810,-212.41,0.00019688,3]
[420126355,1775700646820,-637.27,0.00019688,3]
[420126357,1775700646829,-1468.008728,0.00019698,2]
[420126359,1775700646839,-1468.008728,0.00019698,2]
[420126361,1775700646849,-1468.008728,0.00019698,2]
[420126363,1775700646858,-1468.008728,0.00019698,2]
[420126365,1775700646867,-2584.196473,0.00019698,2]
[420126367,1775700646877,-2584.196473,0.00019698,2]
[420126369,1775700646887,-2584.196473,0.00019698,2]
[420126371,1775700646896,-2584.196473,0.00019698,2]
[420126373,1775700646906,-575.45744185,0.000197,2]
[420126375,1775700646915,-151.769292,0.000198,2]
[420126377,1775700646924,-211.08,0.000198,2]
[420126379,1775700646934,-200.0,0.000198,2]
[420126381,1775700646944,-151.0,0.000198,2]
[420126383,1775700646954,-183.80582425,0.00019826,2]
[420126385,1775700646965,-160.0,0.0001984,7]
[420126387,1775700646974,-1130.07599,0.0001984,7]
[420126389,1775700646984,-2100.15198,0.0001984,7]
[420126391,1775700646993,-355.107,0.00019894,2]
[420126393,1775700647003,-151.0,0.00019898,2]
[420126395,1775700647013,-522.70616241,0.00019999,2]
[420126397,1775700647022,-500.02701841,0.0002,3]
[420126399,1775700647032,-655.73499844,0.0002,2]
[420126401,1775700647041,-4561.09444296,0.0002,2]
[420126403,1775700647050,-375.26903534,0.0002,2]
[420126405,1775700647060,-204.73211758,0.0002,2]
[420126407,1775700647069,-357.80487207,0.00020025,30]
[420126409,1775700647079,-2000.0,0.00020222,2]
[420126410,1775700647088,-2000.0,0.00020222,2]
[420126412,1775700647098,-2000.0,0.00020222,2]
[420126414,1775700647109,-2000.0,0.00020222,2]
[420126416,1775700647118,-2000.0,0.00020222,2]
[420126418,1775700647128,-2000.0,0.00020222,2]
[420126420,1775700647137,-2000.0,0.00020222,2]
[420126422,1775700647147,-2000.0,0.00020222,2]
[420126424,1775700647157,-2000.0,0.00020222,2]
[420126426,1775700647167,-2000.0,0.00020222,2]
[420126428,1775700647176,-1686.18797238,0.00020222,2]
[420126431,1775700647190,-313.81202762,0.00020222,2]
[420126433,1775700647199,-2000.0,0.00020222,2]
[420126435,1775700647209,-2000.0,0.00020222,2]
[420126437,1775700647219,-2000.0,0.00020222,2]
[420126439,1775700647229,-2000.0,0.00020222,2]
[420126441,1775700647238,-689.48831286,0.00020222,2]
[420126443,1775700647248,-164.8,0.00020225,2]
[420126445,1775700647258,-1043.0,0.00020237,7]
[420126447,1775700647268,-5511.24067599,0.00020237,7]
[420126449,1775700647280,-7759.75932401,0.00020237,7]
[420126451,1775700647290,-1098.082549,0.00020245,2]
[420126453,1775700647302,-324.06345758,0.00020245,2]
[420126557,1775701832620,-5000.0,9.606e-05,2]
[420126559,1775701832630,-1200.0,9.702e-05,2]
[420126561,1775701832640,-5000.0,9.703e-05,2]
[420126563,1775701832650,-300.0,9.8e-05,2]
[420126565,1775701832659,-300.0,9.8e-05,2]
[420126567,1775701832669,-300.0,9.8e-05,2]
[420126570,1775701832689,-300.0,9.8e-05,2]
[420126572,1775701832700,-557.0,9.801e-05,2]
[420126573,1775701832709,-833.1548359,0.0001,2]
[420126574,1775701832719,-3365.9038288,0.00013699,2]
[420126575,1775701832728,-1000.0,0.00013699,2]
[420126576,1775701832739,-5533.32424183,0.00013699,2]
[420126577,1775701832748,-1000.0,0.00013699,2]
[420126578,1775701832759,-300.0,0.00016438,2]
[420126579,1775701832768,-2197.6812124,0.00017566,2]
[420126580,1775701832778,-330.0,0.00017964,2]
[420126581,1775701832788,-651.272484,0.00019611,2]
[420126582,1775701832799,-363.0,0.00019632,2]
[420126583,1775701832808,-1934.75742938,0.000199,2]
[420126584,1775701832818,-632.14950163,0.00019934,2]
[420126585,1775701832828,-600.27119827,0.00019934,2]
[420126586,1775701832839,-235.57860962,0.00019999,2]
[420126587,1775701832850,-941.37212404,0.00019999,2]
[420126588,1775701832860,-1000.0,0.0002,2]
[420126589,1775701832869,-162.380719,0.0002005,2]
[420126590,1775701832880,-151.1,0.00020052,2]
[420126591,1775701832890,-284.086,0.00020052,2]
[420126592,1775701832899,-848.3436079,0.0002006,2]
[420126593,1775701832909,-825.7722764,0.0002006,2]
[420126594,1775701832921,-250.5906507,0.00020211,2]
[420126595,1775701832930,-445.0,0.00020245,7]
[420126596,1775701832940,-602.04906455,0.00020273,3]
[420126597,1775701832950,-450.72,0.00020273,3]
[420126598,1775701832962,-623.78603619,0.00020361,2]
[420126599,1775701832971,-254.61262267,0.00020383,60]
[420126600,1775701832981,-152.47288453,0.00020383,60]
[420126601,1775701832991,-220.17773882,0.00020383,60]
[420126602,1775701833001,-500.0,0.00020384,2]
[420126603,1775701833011,-418.92080406,0.00020384,2]
[420126604,1775701833020,-500.0,0.00020384,2]
[420126605,1775701833030,-500.0,0.00020384,2]
[420126606,1775701833039,-500.0,0.00020384,2]
[420126607,1775701833049,-500.0,0.00020384,2]
[420126608,1775701833059,-500.0,0.00020384,2]
[420126609,1775701833068,-500.0,0.00020384,2]
[420126610,1775701833078,-500.0,0.00020384,2]
[420126611,1775701833087,-500.0,0.00020384,2]
[420126612,1775701833097,-500.0,0.00020384,2]
[420126613,1775701833106,-500.0,0.00020384,2]
[420126614,1775701833115,-500.0,0.00020384,2]
[420126615,1775701833125,-500.0,0.00020384,2]
[420126616,1775701833134,-500.0,0.00020384,2]
[420126617,1775701833145,-500.0,0.00020384,2]
[420126618,1775701833154,-500.0,0.00020384,2]
[420126619,1775701833163,-500.0,0.00020384,2]
[420126620,1775701833175,-229.27357362,0.00020384,2]
[420126621,1775701833187,-500.0,0.00020384,2]
[420126622,1775701833198,-500.0,0.00020384,2]
[420126623,1775701833208,-500.0,0.00020384,2]
[420126624,1775701833217,-500.0,0.00020384,2]
[420126625,1775701833227,-500.0,0.00020384,2]
[420126626,1775701833236,-500.0,0.00020384,2]
[420126627,1775701833245,-500.0,0.00020384,2]
[420126628,1775701833255,-500.0,0.00020384,2]
[420126629,1775701833264,-500.0,0.00020384,2]
[420126630,1775701833274,-500.0,0.00020384,2]
[420126631,1775701833283,-500.0,0.00020384,2]
[420126632,1775701833293,-500.0,0.00020384,2]
[420126633,1775701833302,-500.0,0.00020384,2]
[420126634,1775701833312,-500.0,0.00020384,2]
[420126635,1775701833322,-500.0,0.00020384,2]
[420126636,1775701833331,-500.0,0.00020384,2]
[420126637,1775701833341,-500.0,0.00020384,2]
[420126638,1775701833350,-500.0,0.00020384,2]
[420126639,1775701833360,-500.0,0.00020384,2]
[420126640,1775701833369,-500.0,0.00020384,2]
[420126641,1775701833379,-500.0,0.00020384,2]
[420126642,1775701833388,-500.0,0.00020384,2]
[420126643,1775701833398,-500.0,0.00020384,2]
[420126644,1775701833408,-500.0,0.00020384,2]
[420126645,1775701833417,-500.0,0.00020384,2]
[420126646,1775701833427,-500.0,0.00020384,2]
[420126647,1775701833436,-500.0,0.00020384,2]
[420126648,1775701833445,-500.0,0.00020384,2]
[420126649,1775701833455,-500.0,0.00020384,2]
[420126650,1775701833465,-500.0,0.00020384,2]
[420126651,1775701833474,-500.0,0.00020384,2]
[420126652,1775701833484,-500.0,0.00020384,2]
[420126653,1775701833493,-500.0,0.00020384,2]
[420126654,1775701833504,-500.0,0.00020384,2]
[420126655,1775701833513,-500.0,0.00020384,2]
[420126656,1775701833522,-500.0,0.00020384,2]
[420126657,1775701833532,-500.0,0.00020384,2]
[420126658,1775701833541,-500.0,0.00020384,2]
[420126659,1775701833551,-500.0,0.00020384,2]
[420126660,1775701833560,-500.0,0.00020384,2]
[420126661,1775701833569,-500.0,0.00020384,2]
[420126662,1775701833579,-500.0,0.00020384,2]
[420126663,1775701833588,-500.0,0.00020384,2]
[420126664,1775701833597,-500.0,0.00020384,2]
[420126665,1775701833607,-500.0,0.00020384,2]
[420126666,1775701833616,-500.0,0.00020384,2]
[420126667,1775701833626,-500.0,0.00020384,2]
[420126668,1775701833635,-500.0,0.00020384,2]
[420126669,1775701833644,-500.0,0.00020384,2]
[420126670,1775701833653,-500.0,0.00020384,2]
[420126671,1775701833663,-500.0,0.00020384,2]
[420126672,1775701833672,-500.0,0.00020384,2]
[420126673,1775701833682,-500.0,0.00020384,2]
[420126674,1775701833691,-500.0,0.00020384,2]
[420126675,1775701833701,-500.0,0.00020384,2]
[420126676,1775701833710,-500.0,0.00020384,2]
[420126677,1775701833719,-500.0,0.00020384,2]
[420126678,1775701833728,-500.0,0.00020384,2]
[420126679,1775701833737,-500.0,0.00020384,2]
[420126680,1775701833746,-414.37817595,0.00020384,2]
[420126681,1775701833755,-500.0,0.00020384,2]
[420126682,1775701833765,-500.0,0.00020384,2]
[420126683,1775701833774,-561.04632868,0.00020385,2]
[420126684,1775701833783,-1479.410584,0.00020385,2]
[420126685,1775701833792,-1479.410584,0.00020385,2]
[420126686,1775701833802,-1479.410584,0.00020385,2]
[420126687,1775701833811,-1479.410584,0.00020385,2]
[420126688,1775701833820,-1479.410584,0.00020385,2]
[420126689,1775701833829,-1479.410584,0.00020385,2]
[420126690,1775701833838,-1479.410584,0.00020385,2]
[420126691,1775701833847,-1479.410584,0.00020385,2]
[420126692,1775701833856,-68583.45318711,0.00020386,2]
[420126693,1775701833870,-565.82714349,0.00020386,2]
[420126694,1775701833893,-2013.05918132,0.00020386,2]
[420126695,1775701833904,-2750.0,0.00020386,2]
[420126696,1775701833915,-39528.15458527,0.00020386,2]
[420126697,1775701833927,-5435.44929887,0.00020386,2]
[420126737,1775701838776,-30764.40514851,0.00020386,2]
[420126745,1775701841723,-6647.22303878,0.00020386,2]
[420126771,1775701844043,-1290.04820015,0.00020386,2]
[420126772,1775701844055,-1384.40271311,0.00020386,2]
[420126773,1775701844066,-2064.62728689,0.00020386,2]
[420126774,1775701844077,-38276.97931851,0.00020386,2]
[420126782,1775701846728,-14653.61983105,0.00020386,2]
[420126783,1775701846740,-1423.0,0.00020386,2]
[420126784,1775701881701,-387.9627021,0.00013699,2]
[420126785,1775701881713,-612.0372979,0.00013699,2]
[420126814,1775702414255,5000.0,9.001e-05,2]
[420126816,1775702436022,5000.0,9.001e-05,2]
[420126817,1775702458304,5000.0,9.001e-05,2]
[420126818,1775702466254,606.29036633,9.001e-05,2]
[420126822,1775702474268,5000.0,9.001e-05,2]
[420126824,1775702481944,5000.0,9.001e-05,2]
[420126825,1775702503896,5000.0,9.001e-05,2]
[420126828,1775702526879,5000.0,9.001e-05,2]
[420126830,1775702548714,5000.0,9.001e-05,2]
[420126834,1775702570909,5000.0,9.001e-05,2]
[420126838,1775702593263,5000.0,9.001e-05,2]
[420126839,1775702615589,5000.0,9.001e-05,2]
[420126840,1775702637870,5000.0,9.001e-05,2]
[420126843,1775702659768,5000.0,9.001e-05,2]
[420126844,1775702681885,5000.0,9.001e-05,2]